Cogmind - Beta 14 @@@ ROGUE MODE // 2024.11.12 @ 12:09:50 Player: Tereza Result: Destroyed by Y-54 Guardian with Flak Gun Performance ------------- Evolutions (4) 2000 Regions Visited (17) 3400 Robots Destroyed (169) 845 Value Destroyed (8804) 8804 Prototype IDs (35) 700 Alien Tech Used (0) 0 Bonus (4028) 4028 TOTAL SCORE: 19777 Bonus ------- High Alert Combat Kills 866 Follower Combat Kills 726 Entered Garrisons 600 Used RIF Installer 1500 Aligned with FarCom 300 Met Data Miner 300 Friendly Fire -264 Cogmind --------- Core Integrity 0/850 Matter 217/300 Energy 145/150 System Corruption 3% Temperature Cool (12) Movement Walking (260) Ox2 Location -6/Factory Parts ------- > --- POWER (1) -------- Micro Nuclear Core > --- PROPULSION (4) --- Improved Carbon-fiber Leg > --- UTILITY (7) ------ High-capacity Storage Unit Advanced Signal Interpreter Target Analyzer Improved Target Analyzer Relay Coupler [Swarmer] (21) Relay Coupler [Grunt] (5) > --- WEAPON (3) ------- Heavy Particle Gun Heavy Laser > --- INVENTORY (20) --- Light Nuclear Core Improved Deuterium Engine Light Angular Momentum Engine Light Angular Momentum Engine Fission Core Improved Heat Sink Improved Terrain Scanner Hacking Suite Relay Coupler [Sentry] (21) Relay Coupler [Sentry] (22) Relay Coupler [Sentry] (26) Relay Coupler [Demolisher] (26) Relay Coupler [Hunter] (17) Relay Coupler [Proto] (9) Drone Bay (2/2) Rocket Launcher Rocket Launcher Field Lobotomy Kit (2) Peak State ------------ > --- POWER ------------ Neutrino Core > --- PROPULSION ------- Armored Treads Armored Treads Advanced Treads Medium Treads > --- UTILITY ---------- Advanced Heat Sink High-capacity Storage Unit Improved Terrain Scanner Improved Terrain Scan Processor Improved Targeting Computer Advanced Targeting Computer Relay Coupler [Sentry] > --- WEAPON ----------- KE Penetrator Heavy Flak Cannon Enhanced Gauss Cannon > --- INVENTORY -------- Improved Deuterium Engine Fission Core Light Treads Matter Filter Makeshift Transmission Jammer Hardened Medium Armor Plating Improved Light Armor Plating Improved Light Armor Plating Hacking Suite Hacking Suite Field Laser Heavy Particle Gun Phase Cannon Flak Gun Railgun Rocket Launcher Rocket Launcher Rocket Launcher Remote Datajack Field Lobotomy Kit [Rating: 64] Favorites ----------- Power Neutrino Core Engine Ion Engine Power Core Neutrino Core Propulsion Armored Treads Treads Armored Treads Leg Carbon-fiber Leg Wheel Compact Wheel Hover Unit Gravmag System Flight Unit Surge Thruster Utility High-capacity Storage Unit Device Improved Heat Sink Storage High-capacity Storage Unit Processor Improved Targeting Computer Hackware Relay Coupler [Grunt] Protection Improved Light Armor Plating Weapon Enhanced Gauss Cannon Energy Gun Heavy Particle Gun Energy Cannon Phase Cannon Ballistic Gun High-powered Shotgun Ballistic Cannon Enhanced Gauss Cannon Launcher Rocket Launcher Special Weapon Remote Datajack Slashing Weapon Blade Saw Build | -11 -10 -10 -10 -9 -8 -8 -8 -7 -7 -7 -7 -7 -7 -6 -6 -6 -6 ------- Run | Yrd Mat Min Exi Min Mat Gar Mat Fac Gar Fac Low Low Dat Pro Fac Gar Fac Slots Evolved 8 | . . . . . 4 . . 2 . . . . . . 2 . . Power . | . . . . . . . . . . . . . . . . . . Propulsion 2 | . . . . . 2 . . . . . . . . . . . . Utility 5 | . . . . . 2 . . 1 . . . . . . 2 . . Weapon 1 | . . . . . . . . 1 . . . . . . . . . Parts Attached 184 | 6 17 3 . 2 22 15 7 4 6 . 13 4 . 7 16 53 9 Power 21 | 1 3 . . 1 2 3 1 . 2 . 1 . . . 2 5 . Engine 12 | 1 3 . . 1 1 1 1 . 1 . . . . . 1 2 . Core 9 | . . . . . 1 2 . . 1 . 1 . . . 1 3 . Reactor . | . . . . . . . . . . . . . . . . . . Propulsion 47 | 2 4 . . 1 8 4 2 . . . 4 . . 1 3 14 4 Treads 22 | 2 2 . . 1 5 2 2 . . . 4 . . 1 1 2 . Leg 9 | . . . . . . . . . . . . . . . 1 6 2 Wheel 9 | . 2 . . . 3 1 . . . . . . . . 1 1 1 Hover 3 | . . . . . . . . . . . . . . . . 3 . Flight 4 | . . . . . . 1 . . . . . . . . . 2 1 Utility 46 | 1 4 . . . 5 3 2 2 2 . 3 . . 1 7 14 2 Device 13 | . 1 . . . 1 2 . . . . 1 . . . 4 4 . Storage 4 | 1 2 . . . . . . . . . . . . . 1 . . Processor 8 | . 1 . . . 1 1 1 . . . . . . . 1 2 1 Hackware 5 | . . . . . . . . . . . . . . 1 . 4 . Protection 16 | . . . . . 3 . 1 2 2 . 2 . . . 1 4 1 Artifact . | . . . . . . . . . . . . . . . . . . Weapon 70 | 2 6 3 . . 7 5 2 2 2 . 5 4 . 5 4 20 3 Energy Gun 15 | 1 . . . . 3 1 . . . . . . . . 2 7 1 Energy Cannon 2 | . . 1 . . . . . . . . . . . . . 1 . Ballistic Gun 21 | 1 6 1 . . 1 . . 2 1 . . . . 1 2 4 2 Ballistic Cannon 13 | . . . . . 1 3 2 . 1 . 2 2 . 2 . . . Launcher 10 | . . 1 . . 1 1 . . . . 1 2 . 1 . 3 . Special Weapon 8 | . . . . . 1 . . . . . 2 . . 1 . 4 . Impact Weapon . | . . . . . . . . . . . . . . . . . . Slashing Weapon 1 | . . . . . . . . . . . . . . . . 1 . Piercing Weapon . | . . . . . . . . . . . . . . . . . . Special Melee Weapon . | . . . . . . . . . . . . . . . . . . Unidentified Prototypes 1 | . . . . . 1 . . . . . . . . . . . . Parts Lost 76 | . . 2 . 1 16 4 1 . . . 5 . . 2 8 25 12 Power 7 | . . . . . 2 1 . . . . 1 . . . 1 2 . Propulsion 31 | . . . . 1 7 2 . . . . 3 . . 1 2 8 7 Utility 19 | . . . . . 4 1 . . . . 1 . . . 2 9 2 Weapon 19 | . . 2 . . 3 . 1 . . . . . . 1 3 6 3 Highest Loss Streak 7 | . . 2 . 1 4 1 1 . . . 4 . . 1 5 7 5 To Critical Strikes . | . . . . . . . . . . . . . . . . . . Average Slot Usage (%) 95 | . 92 98 100 98 92 93 99 98 100 100 99 100 100 98 98 89 91 Engine 4 | . 13 14 14 14 5 6 . 7 6 . . . . . 2 2 . Core 2 | . . . . . 2 2 8 . . 7 7 7 7 7 3 1 6 Treads 13 | . 16 . . 12 19 10 17 15 15 15 19 30 30 28 21 5 . Leg 3 | . . . . . . . . . . . . . . . 1 10 5 Wheel 7 | . 10 28 28 14 11 16 18 15 15 15 10 . . . 2 . 2 Hover 1 | . . . . . . . . . . . . . . . . 3 7 Flight 1 | . . . . . . 3 . . . . . . . . . 2 4 Device 6 | . 1 . . . 5 8 2 . . . 2 7 7 7 15 10 4 Storage 8 | . 14 14 14 14 9 9 9 7 7 7 7 7 7 7 6 6 6 Processor 13 | . 5 14 14 14 14 17 18 15 15 15 15 15 15 15 16 11 19 Hackware 2 | . . . . . . . . . . . . . . 1 3 7 13 Protection 5 | . . . . . 6 . 6 14 15 15 12 7 7 5 2 7 1 Energy Gun 2 | . 1 . . . 5 2 . . . . . . . . 1 6 6 Energy Cannon 1 | . . 8 14 14 3 . . . . . . . . . . 2 . Ballistic Gun 7 | . 26 16 14 14 7 . . 13 15 15 5 . . 1 9 3 8 Ballistic Cannon 6 | . . . . . 1 14 17 7 7 7 15 22 23 21 7 . . Peak Build Rating 64 | 6 9 10 10 11 27 29 35 39 51 51 57 53 53 56 64 59 60 Average Rating 40 | 4 7 8 9 10 19 26 33 37 43 51 51 52 53 53 59 50 54 On Entrance 33 | . 6 9 9 10 11 24 29 35 39 51 51 52 53 53 56 59 58 Naked Turns . | . . . . . . . . . . . . . . . . . . Heaviest Build 89 | 14 49 49 49 51 56 58 58 69 86 86 89 81 81 81 86 77 65 Greatest Support 90 | 40 40 26 26 26 26 32 32 32 32 32 88 88 88 90 90 68 27 Greatest Overweight (x) 17 | 2 3 1 1 5 5 3 2 2 2 2 4 . . 1 8 16 17 Average Overweight (x) 1 | . 1 1 1 4 3 1 1 1 2 2 1 . . . 2 1 4 Largest Inventory Capacity 20 | 8 20 20 20 20 20 20 20 20 20 20 20 20 20 20 20 20 20 Average Capacity 19 | 7 15 20 20 20 20 20 20 20 20 20 20 20 20 20 20 20 20 Most Carried 20 | 6 20 20 20 20 20 20 20 20 20 20 20 19 19 20 20 20 20 Average Carried 18 | 4 12 19 19 19 18 19 19 19 19 20 18 17 19 19 19 19 19 Final Capacity 20 | 8 20 20 20 20 20 20 20 20 20 20 20 20 20 20 20 20 20 Final Carried 20 | 6 20 19 20 20 20 20 20 20 20 20 15 19 19 20 20 20 18 Class Distribution -------------------- 24% | Gunner 21% | Mutant 14% | Scavenger-Mutant 11% | Bothacker-Mutant 10% | Skirmisher 5% | Scavenger-Tank 5% | Scavenger-Gunner 3% | Bothacker-Skirmisher Dominant Class ---------------- Mutant | -10/Materials Mutant | -10/Mines Mutant | -10/Exiles Mutant | -9/Mines Scavenger-Mutant | -8/Materials Scavenger-Mutant | -8/Garrison Mutant | -8/Materials Gunner | -7/Factory Gunner | -7/Garrison Gunner | -7/Factory Gunner | -7/Lower Caves Gunner | -7/Lower Caves Gunner | -7/Data Miner Gunner | -6/Proximity Caves Skirmisher | -6/Factory Bothacker-Mutant | -6/Garrison Scavenger-Gunner | -6/Factory Resources | -11 -10 -10 -10 -9 -8 -8 -8 -7 -7 -7 -7 -7 -7 -6 -6 -6 -6 ----------- Run | Yrd Mat Min Exi Min Mat Gar Mat Fac Gar Fac Low Low Dat Pro Fac Gar Fac Matter Collected 5598 | 255 211 8 . 292 293 750 593 . 296 101 462 345 . 407 365 1110 110 Remotely . | . . . . . . . . . . . . . . . . . . Salvage Created 5269 | . 467 16 . 247 555 705 392 . 25 48 530 127 . 322 553 1035 247 Parts 309 | . 36 4 . 15 28 55 30 . 3 4 27 1 . 8 36 48 14 Haulers Intercepted 4 | . 1 . . . 1 . 2 . . . . . . . . . . Recyclers Shooed 2 | . 2 . . . . . . . . . . . . . . . . Parts Field Recycled . | . . . . . . . . . . . . . . . . . . Retrieved Matter . | . . . . . . . . . . . . . . . . . . Parts Self-Destructed 41 | . . . . . . . . . . . 26 3 . 12 . . . Prevented 2 | . . . . . . . . . . . . . . 2 . . . Kills | -11 -10 -10 -10 -9 -8 -8 -8 -7 -7 -7 -7 -7 -7 -6 -6 -6 -6 ------- Run | Yrd Mat Min Exi Min Mat Gar Mat Fac Gar Fac Low Low Dat Pro Fac Gar Fac Combat Hostiles Destroyed 152 | . 13 3 . 8 12 28 13 . . 2 15 7 . 10 12 25 4 Guns 59 | . 13 . . 2 9 1 . . . 2 3 . . . 9 16 4 Cannons 77 | . . . . 6 3 24 13 . . . 9 7 . 8 3 4 . AOE 15 | . . 3 . . . 3 . . . . 3 . . 2 . 4 . Classes Destroyed 15 | . 6 . . 2 1 . 1 . . . . . . 1 3 1 . Worker 3 | . 1 . . . 1 . . . . . . . . . . . 1 Builder 3 | . . . . . . . 1 . . . . . . . 2 . . Hauler 4 | . 1 . . . 1 . 2 . . . . . . . . . . Mechanic 1 | . . . . . . . . . . . . . . . 1 . . Operator 2 | . 1 . . . . . . . . . . . . . 1 . . Drone 2 | . . . . . . . . . . . . . . 2 . . . Watcher 3 | . 2 . . . . . 1 . . . . . . . . . . Swarmer 52 | . 9 3 . 4 3 12 3 . . 2 6 2 . 1 . 7 . Cutter 2 | . . . . . . . . . . . . . . . . 2 . Grunt 66 | . 4 . . 2 6 13 9 . . . 6 4 . 5 6 10 1 Brawler 5 | . . . . 1 . . 1 . . . 1 1 . 1 . . . Duelist 4 | . . . . 1 . . . . . . 1 . . 1 . . 1 Sentry 11 | . . . . . 3 3 . . . . 2 . . . 1 2 . Hunter 7 | . . . . . . . . . . . . . . . 3 2 2 Programmer 4 | . . . . . . . . . . . . . . . 2 2 . Best Kill Streak 8 | . 4 3 . 4 3 8 5 . . 2 5 3 . 5 5 6 2 Combat Bots Only 8 | . 3 3 . 4 3 8 4 . . 2 5 3 . 5 4 6 2 Max Kills in Single Turn 2 | . 2 2 . 2 1 2 1 . . 1 2 1 . 1 2 2 1 Gunslinging 1 | . 1 . . . . . . . . . . . . . . . . Exploded 2 | . . 2 . . . 1 . . . . 2 . . 1 . 2 . Melee . | . . . . . . . . . . . . . . . . . . Uniques/NPCs Destroyed . | . . . . . . . . . . . . . . . . . . Combat | -11 -10 -10 -10 -9 -8 -8 -8 -7 -7 -7 -7 -7 -7 -6 -6 -6 -6 -------- Run | Yrd Mat Min Exi Min Mat Gar Mat Fac Gar Fac Low Low Dat Pro Fac Gar Fac Hostile Shots Fired 1070 | . 78 6 . 31 136 76 39 . . 9 118 24 . 58 101 262 132 Missed 295 | . 17 . . 7 36 19 10 . . 4 33 7 . 12 30 74 46 Damage Taken 12483 | . 519 86 . 268 1896 699 456 . 69 178 1647 280 . 748 1080 3330 1227 Core 1738 | . 82 54 . 82 215 109 29 . . 16 143 15 . 141 99 604 149 Absorbed by Shields 42 | . . . . . . 42 . . . . . . . . . . . Core Remaining (%) 50 | 100 . . . 12 . . 35 . . . . . . 55 . . . Volleys Fired 478 | . 66 2 . 21 55 65 41 . 14 4 27 10 . 17 39 95 22 Largest 3 | . 2 1 . 2 2 2 2 . 3 3 3 3 . 3 3 3 3 Hottest 220 | . 60 33 . 80 121 113 96 . 107 117 140 158 . 158 143 220 113 Shots Fired 1052 | . 132 2 . 42 94 124 79 . 28 12 74 30 . 43 114 221 57 Gun 564 | . 132 . . 21 73 12 . . 14 8 23 . . 1 75 149 56 Cannon 451 | . . . . 21 19 109 79 . 14 4 47 25 . 39 39 55 . Launcher 27 | . . 2 . . 2 3 . . . . 3 5 . 2 . 10 . Special 10 | . . . . . . . . . . . 1 . . 1 . 7 1 Kinetic 747 | . 126 . . 21 46 109 79 . 28 12 70 25 . 40 106 51 34 Thermal 252 | . . . . 21 46 12 . . . . . . . . 8 143 22 Explosive 27 | . . 2 . . 2 3 . . . . 3 5 . 2 . 10 . Electromagnetic 16 | . 6 . . . . . . . . . . . . . . 10 . Robot Hit Streak 29 | . 12 1 . 28 29 15 9 . 3 2 11 10 . 14 15 20 11 Robot Miss Streak 8 | . 4 1 . 3 3 5 3 . 1 6 4 3 . 4 5 5 8 Penetration Max 1 | . . . . . . . . . . . 1 . . . 1 1 . Secondary Targets 4 | . 1 . . . . . . . . . . . . . . 3 . Max Gunslinging Chain 1 | . 1 . . . . . . . . . . . . . . 1 . Shots Hit Robots 590 | . 74 1 . 33 73 60 48 . 5 4 43 19 . 26 65 107 32 Core Hits 386 | . 29 4 . 12 31 39 24 . 3 3 27 18 . 32 73 76 15 Critical Kills 2 | . . . . . . . . . . . . . . . 1 . 1 Critical Parts Destroyed 4 | . 1 . . . . . . . . . . . . . 1 1 1 Critical Strikes 32 | . 1 . . . 2 3 6 . . . 4 2 . 2 2 5 5 Burn 9 | . . . . . 2 1 . . . . . . . . . 3 3 Destroy 6 | . 1 . . . . . . . . . . . . . 2 1 2 Blast 16 | . . . . . . 2 6 . . . 4 2 . 2 . . . Sever 1 | . . . . . . . . . . . . . . . . 1 . Melee Attacks 4 | . . . . . . . . . . . . . . . . 4 . Impact . | . . . . . . . . . . . . . . . . . . Slashing 4 | . . . . . . . . . . . . . . . . 4 . Piercing . | . . . . . . . . . . . . . . . . . . Sneak Attacks . | . . . . . . . . . . . . . . . . . . Combat Hostiles . | . . . . . . . . . . . . . . . . . . Follow-up Attacks . | . . . . . . . . . . . . . . . . . . Damage Inflicted 14513 | . 885 145 . 459 1033 1921 1405 . 104 79 1316 835 . 967 1584 3178 602 Guns 5751 | . 885 . . 122 764 89 . . 65 48 355 . . 26 987 1808 602 Cannons 6591 | . . . . 337 269 1492 1405 . 39 31 759 425 . 690 597 547 . Explosions 2155 | . . 145 . . . 340 . . . . 202 410 . 251 . 807 . Melee 16 | . . . . . . . . . . . . . . . . 16 . Ramming . | . . . . . . . . . . . . . . . . . . Kinetic 9387 | . 874 . . 122 477 1492 1405 . 104 79 1114 425 . 716 1558 635 386 Thermal 2937 | . . . . 337 556 89 . . . . . . . . 26 1713 216 Explosive 2110 | . . 145 . . . 340 . . . . 202 410 . 251 . 762 . Electromagnetic 63 | . 11 . . . . . . . . . . . . . . 52 . Impact . | . . . . . . . . . . . . . . . . . . Slashing 16 | . . . . . . . . . . . . . . . . 16 . Piercing . | . . . . . . . . . . . . . . . . . . Highest Corruption 7 | . . . . . 7 7 7 . . . . . . . 2 3 3 Average Corruption 3 | . . . . . 7 7 7 . . . . . . . 1 2 3 Corruption Purged . | . . . . . . . . . . . . . . . . . . Corruption Blocked . | . . . . . . . . . . . . . . . . . . Effects 161 | . . . . . 7 46 24 . . . . . . . 6 67 11 Message Errors 43 | . . . . . . 12 4 . . . . . . . 3 23 1 Matter Fused 34 | . . . . . 3 7 4 . . . . . . . 2 16 2 Heat Flow Errors 25 | . . . . . . 9 4 . . . . . . . . 9 3 Energy Discharges 19 | . . . . . 1 7 . . . . . . . . 1 7 3 Parts Rejected 1 | . . . . . 1 . . . . . . . . . . . . Parts Fused 3 | . . . . . . 1 1 . . . . . . . . 1 . Data Loss (minor) 14 | . . . . . 2 2 5 . . . . . . . . 4 1 Data Loss (major) 5 | . . . . . . 1 2 . . . . . . . . 2 . Misfires 8 | . . . . . . 3 1 . . . . . . . . 3 1 Alerts 2 | . . . . . . 2 . . . . . . . . . . . Weapon Failures 7 | . . . . . . 2 3 . . . . . . . . 2 . Overload Shots . | . . . . . . . . . . . . . . . . . . Overflow Damage 104 | . . . . . . 38 10 . . . 16 . . . . 40 . Projectiles 72 | . . . . . . 38 10 . . . . . . . . 24 . Explosions 32 | . . . . . . . . . . . 16 . . . . 16 . Melee . | . . . . . . . . . . . . . . . . . . Knockbacks 59 | . . . . . 1 11 8 . . . 7 5 . 10 17 . . Impact . | . . . . . . . . . . . . . . . . . . Kinetic 54 | . . . . . 1 10 7 . . . 5 5 . 10 16 . . Secondary 5 | . . . . . . 1 1 . . . 2 . . . 1 . . Self-Inflicted Damage 337 | . . 47 . . 48 . . . . . 108 . . . . 134 . Shots 10 | . . 1 . . 2 . . . . . 3 . . . . 4 . Rammed . | . . . . . . . . . . . . . . . . . . Targets Rammed . | . . . . . . . . . . . . . . . . . . Kicked . | . . . . . . . . . . . . . . . . . . Crushed . | . . . . . . . . . . . . . . . . . . Highest Temperature 434 | . 9 . . 183 237 318 255 . 66 131 380 120 . 193 60 434 223 Average Temperature 95 | . 6 . . 78 70 109 88 . 20 62 158 40 . 78 18 126 71 Received Heat Transfer 3145 | . 96 . . 48 504 321 225 . . . 426 144 . 247 201 720 213 Effects 11 | . . . . . 3 . . . . . 4 . . . . 4 . Shutdowns 1 | . . . . . . . . . . . . . . . . 1 . Energy Bleed 1 | . . . . . . . . . . . 1 . . . . . . Interference 6 | . . . . . 3 . . . . . 3 . . . . . . Matter Decay 1 | . . . . . . . . . . . . . . . . 1 . Short Circuit 2 | . . . . . . . . . . . . . . . . 2 . Siege Activations . | . . . . . . . . . . . . . . . . . . Robots Corrupted . | . . . . . . . . . . . . . . . . . . Combat Hostiles . | . . . . . . . . . . . . . . . . . . Parts Fried . | . . . . . . . . . . . . . . . . . . Impact Corruptions . | . . . . . . . . . . . . . . . . . . Robots Melted 1 | . . . . . . . . . . . . . . . . 1 . Combat Hostiles 1 | . . . . . . . . . . . . . . . . 1 . Parts Melted 19 | . . . . 1 6 . . . . . . . . . . 10 2 Heat Transferred 6532 | . . . . 703 1443 296 . . . . . . . . 50 3411 629 Parts Sabotaged . | . . . . . . . . . . . . . . . . . . Parts Stolen . | . . . . . . . . . . . . . . . . . . Parts Stripped . | . . . . . . . . . . . . . . . . . . Power Chain Reactions 1 | . . . . . . . . . . . . . . . . 1 . Alert | -11 -10 -10 -10 -9 -8 -8 -8 -7 -7 -7 -7 -7 -7 -6 -6 -6 -6 ------- Run | Yrd Mat Min Exi Min Mat Gar Mat Fac Gar Fac Low Low Dat Pro Fac Gar Fac Peak Influence 2389 | . 307 146 . 115 267 1258 783 328 792 676 . . . . 218 2389 1306 Initial 1253 | . . 78 . . 44 33 612 328 229 415 . . . . 217 69 1253 Average 613 | . 192 119 . 71 112 677 667 328 493 467 . . . . 117 1071 1247 Maximum Alert Level 5 | . 1 . . . 1 4 3 1 3 2 . . . . 1 5 4 Low Security (%) 30 | 100 58 100 . 100 88 27 . . . . . . . . 67 5 . Level 1 16 | . 41 . . . 11 8 . 100 34 . . . . . 32 11 . Level 2 19 | . . . . . . 6 66 . 61 100 . . . . . 18 . Level 3 14 | . . . . . . 42 33 . 4 . . . . . . 21 2 Level 4 10 | . . . . . . 14 . . . . . . . . . 16 97 Level 5 8 | . . . . . . . . . . . . . . . . 27 . High Security . | . . . . . . . . . . . . . . . . . . Max Security . | . . . . . . . . . . . . . . . . . . Squads Dispatched 12 | . 2 . . . 5 . 2 . . 1 . . . . 2 . . Investigation 4 | . 1 . . . 1 . 1 . . 1 . . . . . . . Extermination 1 | . . . . . . . . . . . . . . . 1 . . Reinforcement 4 | . 1 . . . 1 . 1 . . . . . . . 1 . . Assault . | . . . . . . . . . . . . . . . . . . Garrison 3 | . . . . . 3 . . . . . . . . . . . . Intercept . | . . . . . . . . . . . . . . . . . . Searches Triggered . | . . . . . . . . . . . . . . . . . . Construction Impeded . | . . . . . . . . . . . . . . . . . . Haulers Reinforced . | . . . . . . . . . . . . . . . . . . Active Scanning Responses . | . . . . . . . . . . . . . . . . . . Cargo Convoy Interrupts . | . . . . . . . . . . . . . . . . . . Stealth | -11 -10 -10 -10 -9 -8 -8 -8 -7 -7 -7 -7 -7 -7 -6 -6 -6 -6 --------- Run | Yrd Mat Min Exi Min Mat Gar Mat Fac Gar Fac Low Low Dat Pro Fac Gar Fac Distress Signals 3 | . 2 . . . 1 . . . . . . . . . . . . Communications Jammed . | . . . . . . . . . . . . . . . . . . Distress Signals . | . . . . . . . . . . . . . . . . . . Times Spotted 221 | . 28 3 . 9 20 36 18 . . 5 17 10 . 12 15 40 8 Peak Tracking Total 9 | . 4 3 . 4 4 9 4 . . 2 7 4 . 7 4 6 2 Tactical Retreats 20 | . 3 . . 1 3 3 1 . . . . 1 . 1 . 6 1 Traps | -11 -10 -10 -10 -9 -8 -8 -8 -7 -7 -7 -7 -7 -7 -6 -6 -6 -6 ------- Run | Yrd Mat Min Exi Min Mat Gar Mat Fac Gar Fac Low Low Dat Pro Fac Gar Fac Traps Triggered 24 | . 7 . . . 1 6 2 . 1 1 . . . . 1 4 1 Indirectly . | . . . . . . . . . . . . . . . . . . Trap Hack Attempts . | . . . . . . . . . . . . . . . . . . Triggered . | . . . . . . . . . . . . . . . . . . Disarmed . | . . . . . . . . . . . . . . . . . . Reprogrammed . | . . . . . . . . . . . . . . . . . . Reused . | . . . . . . . . . . . . . . . . . . Traps Extracted . | . . . . . . . . . . . . . . . . . . Installed . | . . . . . . . . . . . . . . . . . . Triggered 2 | . . . . . . . . . . . . . . 2 . . . Machines | -11 -10 -10 -10 -9 -8 -8 -8 -7 -7 -7 -7 -7 -7 -6 -6 -6 -6 ---------- Run | Yrd Mat Min Exi Min Mat Gar Mat Fac Gar Fac Low Low Dat Pro Fac Gar Fac Machines Disabled 21 | . . . . . . 5 . . 5 3 . . . . 2 6 . Max in Single Turn 1 | . . . . . . 1 . . 1 . . . . . 1 1 . Garrison Relay 15 | . . . . . . 5 . . 5 . . . . . . 5 . Machines Repaired . | . . . . . . . . . . . . . . . . . . Machines Dismantled . | . . . . . . . . . . . . . . . . . . Machines Sabotaged . | . . . . . . . . . . . . . . . . . . Overloaded Fab Kills . | . . . . . . . . . . . . . . . . . . Hacking | -11 -10 -10 -10 -9 -8 -8 -8 -7 -7 -7 -7 -7 -7 -6 -6 -6 -6 --------- Run | Yrd Mat Min Exi Min Mat Gar Mat Fac Gar Fac Low Low Dat Pro Fac Gar Fac Machines Accessed 32 | . 5 . 2 1 2 2 4 1 . 2 . . 4 . 7 1 1 Terminals 23 | . 5 . . 1 1 2 4 . . 2 . . . . 6 1 1 Fabricators . | . . . . . . . . . . . . . . . . . . Repair Stations . | . . . . . . . . . . . . . . . . . . Recycling Units . | . . . . . . . . . . . . . . . . . . Scanalyzers . | . . . . . . . . . . . . . . . . . . Garrison Access 3 | . . . . . 1 . . 1 . . . . . . 1 . . Total Hacks 87 | . 14 . 5 2 4 4 8 1 . 3 . . 30 . 12 3 1 Successful 51 | . 5 . 5 1 1 1 2 1 . 1 . . 30 . 3 1 . Failed 35 | . 8 . . 1 3 3 6 . . 2 . . . . 9 2 1 Catastrophic 12 | . 3 . . . 1 1 3 . . . . . . . 4 . . Database Lockouts 1 | . 1 . . . . . . . . . . . . . . . . Manual 32 | . 11 . 1 2 2 . 3 . . 2 . . . . 10 . 1 Terminals 48 | . 14 . . 2 2 4 8 . . 3 . . . . 11 3 1 Fabricators . | . . . . . . . . . . . . . . . . . . Repair Stations . | . . . . . . . . . . . . . . . . . . Recycling Units . | . . . . . . . . . . . . . . . . . . Scanalyzers . | . . . . . . . . . . . . . . . . . . Garrison Access 4 | . . . . . 2 . . 1 . . . . . . 1 . . Terminal Hacks 46 | . 4 . 5 1 . 1 2 . . 1 . . 30 . 1 1 . Record 15 | . . . 4 . . . . . . . . . 11 . . . . Part Schematic 12 | . . . . . . . . . . . . . 12 . . . . Robot Schematic 4 | . . . . . . . . . . . . . 4 . . . . Robot Analysis 5 | . 3 . . 1 . . 1 . . . . . . . . . . Prototype ID Bank 3 | . . . . . . . . . . . . . 3 . . . . Open DSF 1 | . . . . . . . . . . . . . . . 1 . . Branch Access Points 3 | . 1 . . . . . 1 . . 1 . . . . . . . Emergency Access Points 1 | . . . . . . . . . . . . . . . . 1 . Garrison Registry 1 | . . . . . . 1 . . . . . . . . . . . Derelict Proto ID Bank 1 | . . . 1 . . . . . . . . . . . . . . Fabricator Hacks . | . . . . . . . . . . . . . . . . . . Repair Station Hacks . | . . . . . . . . . . . . . . . . . . Recycling Unit Hacks . | . . . . . . . . . . . . . . . . . . Scanalyzer . | . . . . . . . . . . . . . . . . . . Garrison Access Hacks 3 | . . . . . 1 . . 1 . . . . . . 1 . . Unlock Access 3 | . . . . . 1 . . 1 . . . . . . 1 . . Unauthorized Hacks 2 | . 1 . . . . . . . . . . . . . 1 . . Terminals 2 | . 1 . . . . . . . . . . . . . 1 . . Botnet 2 | . 1 . . . . . . . . . . . . . 1 . . Fabricators . | . . . . . . . . . . . . . . . . . . Repair Stations . | . . . . . . . . . . . . . . . . . . Recycling Units . | . . . . . . . . . . . . . . . . . . Scanalyzers . | . . . . . . . . . . . . . . . . . . Garrison Access . | . . . . . . . . . . . . . . . . . . Data Cores Recovered . | . . . . . . . . . . . . . . . . . . Used . | . . . . . . . . . . . . . . . . . . Hacking Detections 22 | . 4 . . 1 2 2 4 . . 2 . . . . 5 1 1 Full Trace Events 2 | . . . . . . 1 1 . . . . . . . . . . Feedback Events . | . . . . . . . . . . . . . . . . . . Feedback Blocked . | . . . . . . . . . . . . . . . . . . Robot Schematics Acquired 4 | . . . . . . . . . . . . . 4 . . . . Robots Built . | . . . . . . . . . . . . . . . . . . Authchips . | . . . . . . . . . . . . . . . . . . Time . | . . . . . . . . . . . . . . . . . . Total Robot Build Rating . | . . . . . . . . . . . . . . . . . . Part Schematics Acquired 12 | . . . . . . . . . . . . . 12 . . . . Parts Built . | . . . . . . . . . . . . . . . . . . Authchips . | . . . . . . . . . . . . . . . . . . Time . | . . . . . . . . . . . . . . . . . . Total Part Build Rating . | . . . . . . . . . . . . . . . . . . Parts Repaired . | . . . . . . . . . . . . . . . . . . Time . | . . . . . . . . . . . . . . . . . . Parts Recycled . | . . . . . . . . . . . . . . . . . . Recycled Matter . | . . . . . . . . . . . . . . . . . . Retrieved Matter . | . . . . . . . . . . . . . . . . . . Retrieved Components . | . . . . . . . . . . . . . . . . . . Parts Scanalyzed . | . . . . . . . . . . . . . . . . . . Part Schematics Acquired . | . . . . . . . . . . . . . . . . . . Parts Damaged . | . . . . . . . . . . . . . . . . . . Bothacking | -11 -10 -10 -10 -9 -8 -8 -8 -7 -7 -7 -7 -7 -7 -6 -6 -6 -6 ------------ Run | Yrd Mat Min Exi Min Mat Gar Mat Fac Gar Fac Low Low Dat Pro Fac Gar Fac Used RIF Installer 3 | . . . . . . 1 . . 1 . . . . . . 1 . Signal Jammer 1 | . . . . . . . . . . . . . . . . 1 . Zone Cloak 1 | . . . . . . . . . 1 . . . . . . . . Robots Hacked 5 | . . . . . . . . . . . . . . 1 . 3 1 Non-combat . | . . . . . . . . . . . . . . . . . . Combat 5 | . . . . . . . . . . . . . . 1 . 3 1 Robot Hacks Applied 5 | . . . . . . . . . . . . . . 1 . 3 1 amplify_resonance 2 | . . . . . . . . . . . . . . . . 2 . formatsys_high 3 | . . . . . . . . . . . . . . 1 . 1 1 Relay Couplers Released 68 | . . . . . . 21 . . 21 . . . . . . 26 . Machine Destruction 65 | . . . . . . 21 . . 21 . . . . . . 23 . Programmers 3 | . . . . . . . . . . . . . . . . 3 . Attached 4 | . . . . . . . . . . . . . . 1 . 3 . Fabnet Peak Effective % . | . . . . . . . . . . . . . . . . . . Robots Rewired 11 | . . . . . . 6 . . 3 . 2 . . . . . . Allies Hacked . | . . . . . . . . . . . . . . . . . . Hacks Repelled . | . . . . . . . . . . . . . . . . . . Allies | -11 -10 -10 -10 -9 -8 -8 -8 -7 -7 -7 -7 -7 -7 -6 -6 -6 -6 -------- Run | Yrd Mat Min Exi Min Mat Gar Mat Fac Gar Fac Low Low Dat Pro Fac Gar Fac Total Allies 17 | . . . . . . 6 . . 3 . 3 . . 1 . 3 1 Largest Group 3 | . . . . . . 3 2 . 3 3 2 . . 1 1 2 2 Highest-Rated Group 122 | . . . . . . 48 20 . 65 65 49 . . 32 32 122 93 Highest-Rated Ally 85 | . . . . . . 16 10 . 32 32 49 . . 32 32 85 81 Total Orders . | . . . . . . . . . . . . . . . . . . Ally Attacks 79 | . . . . . . 16 . . . 16 13 . . 3 2 21 8 Total Damage 2200 | . . . . . . 225 . . . 396 359 . . 92 65 699 364 Kills 23 | . . . . . . 4 . . . 7 1 . . 2 . 7 2 Allies Corrupted . | . . . . . . . . . . . . . . . . . . Allies Melted . | . . . . . . . . . . . . . . . . . . Field Lobotomies 3 | . . . . . . . . . . . 1 . . . . 2 . Intel | -11 -10 -10 -10 -9 -8 -8 -8 -7 -7 -7 -7 -7 -7 -6 -6 -6 -6 ------- Run | Yrd Mat Min Exi Min Mat Gar Mat Fac Gar Fac Low Low Dat Pro Fac Gar Fac Robot Analysis Total 5 | . 3 . . 1 . . 1 . . . . . . . . . . Derelict Logs Recovered 10 | . . 2 . 2 . . . . . . 1 2 . 3 . . . Drone Launches . | . . . . . . . . . . . . . . . . . . Drone Recoveries . | . . . . . . . . . . . . . . . . . . Exploration | -11 -10 -10 -10 -9 -8 -8 -8 -7 -7 -7 -7 -7 -7 -6 -6 -6 -6 ------------- Run | Yrd Mat Min Exi Min Mat Gar Mat Fac Gar Fac Low Low Dat Pro Fac Gar Fac Turns Passed 13718 | 64 1055 102 229 750 552 1375 652 96 958 480 641 572 127 478 1405 3715 467 Spaces Moved 6931 | 35 561 90 218 456 226 854 361 70 676 357 346 318 77 242 585 1281 178 Core 12 | 6 . . . . . . . . . . . . . . . 5 1 Treads 1570 | 29 197 . . . . . 5 . . . 101 318 77 242 372 229 . Legs 914 | . . . . . . . . . . . . . . . . 893 21 Wheels 4235 | . 364 90 218 456 226 854 356 70 676 357 245 . . . 213 14 96 Hover 199 | . . . . . . . . . . . . . . . . 139 60 Flight 1 | . . . . . . . . . . . . . . . . 1 . Fastest Speed 50 | 50 105 105 105 105 120 105 115 115 130 130 130 167 167 161 158 182 155 Average Speed 162 | 144 135 105 105 142 134 120 117 127 130 130 140 167 167 168 190 252 207 Slowest Speed 900 | 160 240 105 105 155 155 145 330 130 130 130 167 167 167 246 243 850 900 Overloaded Moves . | . . . . . . . . . . . . . . . . . . Propulsion Burnouts . | . . . . . . . . . . . . . . . . . . Robots Hopped . | . . . . . . . . . . . . . . . . . . Cave-ins Triggered 1 | . . . . . 1 . . . . . . . . . . . . Exploration Rate (%) 45 | 3 91 24 60 78 12 77 38 2 89 12 52 53 68 41 20 85 8 Regions Visited 17 Branch Regions 7 Pre-discovered Areas 5 | . . . 1 . . . . . . . . 1 1 2 . . . Known Exits Taken 7 | . 1 . 1 . 1 . 1 1 . 1 . . . . 1 . . Unknown Exits Taken 7 | 1 . 1 . 1 . . . . . . 1 1 1 1 . . . Scrap Searched 11 | . . . . 3 . . . . . . 3 3 . 2 . . . Spaces Dug 27 | . . . . . 9 . 2 . 4 . . . . . 5 7 . Terrain Destroyed 269 | . . 24 . . 15 1 19 . 5 5 38 55 . 27 11 68 1 Melee . | . . . . . . . . . . . . . . . . . . Projectile 88 | . . . . . . . 19 . 5 5 24 5 . 12 11 6 1 AOE 181 | . . 24 . . 15 1 . . . . 14 50 . 15 . 62 . Terrain Rammed . | . . . . . . . . . . . . . . . . . . Walls Destroyed . | . . . . . . . . . . . . . . . . . . Machines Disabled . | . . . . . . . . . . . . . . . . . . Actions | -11 -10 -10 -10 -9 -8 -8 -8 -7 -7 -7 -7 -7 -7 -6 -6 -6 -6 --------- Run | Yrd Mat Min Exi Min Mat Gar Mat Fac Gar Fac Low Low Dat Pro Fac Gar Fac Total 8496 | 46 731 94 218 528 385 1076 513 78 743 364 440 335 76 278 797 1564 230 Wait 505 | . 62 . . 36 56 44 78 . 3 4 5 . . 6 131 62 18 Move 6911 | 34 560 89 217 455 225 852 360 69 674 356 345 317 76 241 584 1279 178 Hop . | . . . . . . . . . . . . . . . . . . Pick Up 133 | 6 19 . 1 7 21 5 13 2 7 . 2 4 . 5 16 24 1 Fast Attach 68 | 6 14 1 . . 3 8 2 2 . . 3 . . . 4 19 6 Attach 53 | . . 1 . 1 15 1 1 1 . . 5 . . 2 9 14 3 Detach 5 | . 1 . . . . . . . . . . . . . . 4 . Swap 63 | . 3 1 . 1 4 6 4 1 6 . 5 4 . 5 3 20 . Drop 98 | . 6 . . 7 6 10 14 3 13 . 2 . . 2 11 22 2 Fire 478 | . 66 2 . 21 55 65 41 . 14 4 27 10 . 17 39 95 22 Melee 4 | . . . . . . . . . . . . . . . . 4 . Ram . | . . . . . . . . . . . . . . . . . . Kick . | . . . . . . . . . . . . . . . . . . Crush . | . . . . . . . . . . . . . . . . . . Escape Stasis 64 | . . . . . . 44 . . . . . . . . . 20 . Rewire 114 | . . . . . . 41 . . 26 . 46 . . . . 1 . Trap . | . . . . . . . . . . . . . . . . . . Miscellaneous . | . . . . . . . . . . . . . . . . . . Route ------- -11/Scrapyard -10/Materials (discovered 4 exits: [*Mat x2] / *Min x2) -10/Mines -10/Exiles (discovered 2 exits: *Min x2) -9/Mines -8/Materials (discovered 2 exits: Fac / Gar) -8/Garrison (discovered 4 exits: *Mat x4) -8/Materials -7/Factory (discovered 2 exits: Sto / Gar) -7/Garrison (discovered 3 exits: *Fac x3) -7/Factory (discovered 3 exits: Sto / *Low x2) -7/Lower Caves -7/Lower Caves -7/Data Miner -6/Proximity Caves -6/Factory -6/Garrison (discovered 3 exits: *Fac x3) -6/Factory History --------- Turn | Location | Event 7 | -11/Scrapyard | Discovered new exit (range 16) 65 | -11/Scrapyard | Entered Materials 86 | -10/Materials | Central database locked down 304 | -10/Materials | Build established: Mutant 308 | -10/Materials | Discovered new exit (range 10) 502 | -10/Materials | Discovered new exit (range 10) 948 | -10/Materials | Discovered new exit (range 10) 1051 | -10/Materials | Identified exit to Mines 1120 | -10/Materials | Entered Mines 1152 | -10/Mines | Learned Materials garrison access intel 1159 | -10/Mines | Core integrity fell below 50% 1188 | -10/Mines | Met a Derelict bent on vengeance 1217 | -10/Mines | Deemed a non-threat by the Exiles lab entrance 1218 | -10/Mines | Discovered new exit (range 5) 1222 | -10/Mines | Entered Exiles 1223 | -10/Exiles | Identified exit to Mines 1249 | -10/Exiles | Met 8R-AWN 1266 | -10/Exiles | Met EX-HEX 1296 | -10/Exiles | Met EX-BIN 1309 | -10/Exiles | Aligned with FarCom system 1310 | -10/Exiles | Given EX-Vault access code 1334 | -10/Exiles | Opened EX-Vault 1341 | -10/Exiles | Found Field Lobotomy Kit 1364 | -10/Exiles | Warned to stay clear of 0b10 Research branches 1397 | -10/Exiles | Met EX-DEC 1402 | -10/Exiles | Learned location of Zion (-6) 1451 | -10/Exiles | Left Exiles lab with Field Lobotomy Kit 1451 | -10/Exiles | Entered Mines 1863 | -9/Mines | A weapon hastily lodged in a ceiling crevice suddenly fell to the ground 1989 | -9/Mines | Core integrity fell below 20% 2163 | -9/Mines | Discovered new exit (range 13) 2201 | -9/Mines | Entered Materials 2201 | -8/Materials | Evolved 4 slots: Propulsion x2, Utility x2 2202 | -8/Materials | Identified exit to Factory 2203 | -8/Materials | Loaded intel: 1 garrison access location 2353 | -8/Materials | Garrison activated, responded to threat 2423 | -8/Materials | Lost 4 parts (3n1u) 2523 | -8/Materials | Crushed by falling debris 2614 | -8/Materials | Lost 4 parts (1p1u2w) 2720 | -8/Materials | Build established: Scavenger-Mutant 2752 | -8/Materials | Identified exit to Garrison 2753 | -8/Materials | Entered Garrison 2771 | -8/Garrison | Garrison Relay disabled 2780 | -8/Garrison | Lost 3 parts (2n1u) 2787 | -8/Garrison | Triggered checkpoint 2823 | -8/Garrison | Garrison Relay disabled 2939 | -8/Garrison | Triggered checkpoint 3000 | -8/Garrison | Discovered new exit (range 5) 3127 | -8/Garrison | Triggered checkpoint 3127 | -8/Garrison | Triggered checkpoint 3207 | -8/Garrison | Discovered new exit (range 11) 3243 | -8/Garrison | Triggered checkpoint 3263 | -8/Garrison | Garrison Relay disabled 3380 | -8/Garrison | Destroyed 8 combat bots 3455 | -8/Garrison | Triggered checkpoint 3528 | -8/Garrison | Garrison Relay disabled 3564 | -8/Garrison | Discovered new exit (range 10) 3698 | -8/Garrison | Discovered new exit (range 10) 3727 | -8/Garrison | Triggered checkpoint 3730 | -8/Garrison | Core integrity fell below 50% 3753 | -8/Garrison | Triggered checkpoint 3771 | -8/Garrison | Garrison Relay disabled 3901 | -8/Garrison | Discovered new exit (range 46) 3901 | -8/Garrison | Discovered new exit (range 17) 3901 | -8/Garrison | Discovered new exit (range 77) 3901 | -8/Garrison | Discovered new exit (range 56) 3965 | -8/Garrison | Triggered checkpoint 4078 | -8/Garrison | Installed Relay Interface Framework 4128 | -8/Garrison | Entered Materials 4128 | -8/Materials | Accompanied by 2 allies 4445 | -8/Materials | Build established: Mutant 4482 | -8/Materials | Discovered exit to Factory (range 12) 4780 | -8/Materials | Entered Factory 4780 | -7/Factory | Evolved 2 slots: Utility x1, Weapon x1 4781 | -7/Factory | Identified exit to Storage 4875 | -7/Factory | Identified exit to Garrison 4876 | -7/Factory | Entered Garrison 4876 | -7/Garrison | Discovered recently destroyed garrison 4948 | -7/Garrison | Garrison Relay disabled 5079 | -7/Garrison | Expanded RIF knowledge: Zone Cloak 5095 | -7/Garrison | Build established: Gunner 5206 | -7/Garrison | Garrison Relay disabled 5269 | -7/Garrison | Discovered new exit (range 14) 5461 | -7/Garrison | Garrison Relay disabled 5498 | -7/Garrison | Discovered new exit (range 11) 5529 | -7/Garrison | Garrison Relay disabled 5766 | -7/Garrison | Garrison Relay disabled 5799 | -7/Garrison | Discovered new exit (range 9) 5834 | -7/Garrison | Entered Factory 5834 | -7/Factory | Accompanied by 3 allies 5922 | -7/Factory | Identified exit to Lower Caves 6314 | -7/Factory | Entered Lower Caves 6358 | -7/Lower Caves | Attracted the attention of an 0b10 outpost 6366 | -7/Lower Caves | Assimilated Y-64 Sentinel with FLK Orb 6548 | -7/Lower Caves | Learned Factory emergency access door positions 6563 | -7/Lower Caves | Attracted the attention of an 0b10 checkpoint 6811 | -7/Lower Caves | Lost 4 parts (1p2n1u) 6930 | -7/Lower Caves | Discovered new exit (range 16) 6955 | -7/Lower Caves | Entered another Lower Caves area 6956 | -7/Lower Caves | Encountered a Warlord checkpoint 6977 | -7/Lower Caves | Learned location of Extension (-4) 7504 | -7/Lower Caves | Discovered new exit (range 11) 7527 | -7/Lower Caves | Entered Data Miner 7527 | -7/Data Miner | Discovered new exit (range 6) 7559 | -7/Data Miner | Met Data Miner 7591 | -7/Data Miner | Learned location of Section 7 (-2) 7591 | -7/Data Miner | Acquired the access code to Warlord's prototype stash 7619 | -7/Data Miner | Received God Mode back door access code from Data Miner 7654 | -7/Data Miner | Entered Proximity Caves 7793 | -6/Proximity Caves | Spotter reported a threat 7864 | -6/Proximity Caves | Learned 4 Factory zone layouts 8062 | -6/Proximity Caves | Attracted the attention of an 0b10 checkpoint 8113 | -6/Proximity Caves | Discovered new exit (range 10) 8132 | -6/Proximity Caves | Entered Factory 8132 | -6/Factory | Accompanied by 1 ally 8132 | -6/Factory | Evolved 2 slots: Utility x2 8486 | -6/Factory | Build established: Skirmisher 8935 | -6/Factory | Lost 5 parts (1p1n2u1w) 9523 | -6/Factory | Identified exit to Garrison 9537 | -6/Factory | Entered Garrison 9608 | -6/Garrison | Lost 3 parts (2n1w) 9665 | -6/Garrison | Triggered checkpoint 9742 | -6/Garrison | Garrison Relay disabled 9974 | -6/Garrison | Build established: Scavenger-Gunner 10256 | -6/Garrison | Lost 3 parts (1n1u1w) 10449 | -6/Garrison | Triggered checkpoint 10511 | -6/Garrison | Lost 3 parts (1p2u) 10539 | -6/Garrison | Build established: Scavenger-Tank 10591 | -6/Garrison | Expanded RIF knowledge: Signal Jamming 10609 | -6/Garrison | Discovered new exit (range 12) 10783 | -6/Garrison | Triggered checkpoint 10834 | -6/Garrison | Garrison Relay disabled 11051 | -6/Garrison | Triggered checkpoint 11066 | -6/Garrison | Discovered new exit (range 13) 11107 | -6/Garrison | Lost 6 parts (2n3u1w) 11393 | -6/Garrison | Triggered checkpoint 11464 | -6/Garrison | Discovered new exit (range 8) 11567 | -6/Garrison | Garrison Relay disabled 11633 | -6/Garrison | Triggered checkpoint 11646 | -6/Garrison | Build established: Bothacker-Skirmisher 11720 | -6/Garrison | Spotted B-75 Beast 11743 | -6/Garrison | Core integrity fell below 50% 11782 | -6/Garrison | Core integrity fell below 20% 11783 | -6/Garrison | Assimilated B-75 Beast with FLK Orb 11806 | -6/Garrison | Lost 7 parts (1p2n2u2w) 11948 | -6/Garrison | Assimilated P-60 Hacker with FLK Orb 12032 | -6/Garrison | Build established: Bothacker-Mutant 12033 | -6/Garrison | Found Relay Coupler [Proto] 12153 | -6/Garrison | Garrison Relay disabled 12419 | -6/Garrison | Triggered checkpoint 12498 | -6/Garrison | Garrison Relay disabled 12777 | -6/Garrison | Identified exit to Factory 13252 | -6/Garrison | Entered Factory 13252 | -6/Factory | Accompanied by 1 ally 13381 | -6/Factory | Lost 4 parts (3n1w) 13657 | -6/Factory | Lost 3 parts (2n1u) 13719 | -6/Factory | Destroyed by Y-54 Guardian with Flak Gun Last Messages --------------- 13656_ Slug penetrates G-67 Veteran. 13660_ G-67 Veteran suffers critical hit (Burn). 13660_ Slug penetrates G-67 Veteran. 13663_ G-67 Veteran suffers critical hit (Destroy). 13663_ Plasma Rifle melted. 13663_ G-67 Veteran destroyed. 13669_ Critical hit (Burn: +37). 13677_ Slug penetrates G-50 Soldier. 13677_ G-50 Soldier suffers critical hit (Destroy). 13677_ Destroyed Hvy. Laser. 13680_ Acquired 71 matter. 13688_ Gauss Rifle destroyed. 13696_ Imp. Medium Armor Plating destroyed. 13696_ Carbon-fiber Leg destroyed. 13706_ Surge Thruster destroyed. 13709_ Acquired Imp. Carbon-fiber Leg. 13712_ System corrupted: Component data lost. 13715_ Hvy. Machine Gun destroyed. Map ----- +----------------------------------------------------+ | | | | | | | | | | | | | | | | | | | | | | | | | | | | | | | | | ???????????????????????????????###########???????? | | ???????????????????????????????# #???????? | | ???????????????????????????????# ! #???????? | | ??????????????????###??????????# #???????? | | ??????????????????# ?????????# #???????? | | ??????????????????# ??############"##"#######?? | | ??????????????????# ### #?? | | ??????????????????# =%! ########+##### #?? | | ??????????????????# [%![! #"####### ## #?? | | ??????????????????# """=@ # !## ""## #?? | | ??????????????????# ""F ^* # """ ## ""## #?? | | ??????????????????# "" =* # """ ## T"## #? | | ??????????????????# """ *% # """ ## ""## #? | | ??????????????????# """ + ## ""## # | | ??????????????????# == # / ## ! ## # | | ??????????????????# = ################ + | | ??????????????????###""T""# ###??????????????# # | | ????????????????????#"""""# #????????????????# # | | ?????????????????????######Y#????????????????# #? | | ?????????????????????????? ????????????????# #? | | ?????????????????????????? ????????????????# #?? | | ?????????????????????????? ????????????????# #?? | | ?????????????????????????? ?????????#####??# #?? | | ?????????????????????????? ????????# ?# #?? | | ??????????????????????????????????????# ?# #?? | | ??????????????????????????????????????# # #?? | | ??????????????????????????????????????# # ### | | ??????????????????????????????????????# + | | ??????????????????????????????????????# #### | | ??????????????????????????????????????# ???# | | ??????????????????????????????????????# ????# | | ??????????????????????????????????????# ????#+ | | ??????????????????????????????????????# ??????? | | ??????????????????????????????????????# ??????? | +----------------------------------------------------+ Best States ------------- Heat Dissipation 70 Energy Generation 19 Energy Capacity 315 Matter Stores 300 Matter Capacity 300 Sight Range 16 Terrain Scan Range 16 Terrain Scan Density 110 Armor Coverage 450 Resistance: EM 15 Evasion (%) 40 Targeting Accuracy 14 Target Analysis 8 Recoil Reduction 4 Matter Filtering 30 Offensive Hacking 10 Relay Coupler Types 2 Relay Coupler Value 88 Item Schematics ----------------- Combat Drone Bay | -7/Data Miner | Free Biomechanical Wings | -7/Data Miner | Free Lgt. Regenerative Plating | -7/Data Miner | Free Exp. Utility Shielding | -7/Data Miner | Free Gui. EMP Blaster | -7/Data Miner | Free Arm. Medium Treads | -7/Data Miner | Free Remote Force Field | -7/Data Miner | Free Mass Driver | -7/Data Miner | Free EM Disruption Field | -7/Data Miner | Free Neutrino Core | -7/Data Miner | Free Adv. Cooling System | -7/Data Miner | Free Adv. Thermal Generator | -7/Data Miner | Free Robot Schematics ------------------ Y-54 Guardian | -7/Data Miner | Free L-41 Fighter | -7/Data Miner | Free W-25 Informer | -7/Data Miner | Free I-36 Angel | -7/Data Miner | Free Fabricated ------------ Nothing Alien Tech Used ----------------- None Achievements -------------- None Challenges ------------ None Game ------ Seed PointMasterMallet Manual? 0 Play Time 01:15:49 Cumulative 112.1 hours Start 2024.11.12 @ 10:51:36 End 2024.11.12 @ 12:09:50 Sessions 1 Manual Loads 0 Difficulty Rogue Special Mode None Game No. 134 Rogue 134 Adventurer 0 Explorer 0 Win Type - Total 1 Types 1/0/0/0/0/0/0/0/0 Lore% 63 Gallery% 54 Achievement% 45 Wizard Run 0 Options --------- Layout 1 ASCII 0 Keyboard 1 Movement Numpad Keybinds 0 Fullscreen 1 Font 24/Smallcaps Map View 50x35 Zoom Use 0% Tactical HUD 1 Map Filters NONE Filters NONE Steam 1 RUN: bd6e2481-e810-48a5-ad16-5dc02933f672